[Event "NJSK 2024 C"]
[Site "Groningen, Netherlands"]
[Date "2024.04.27"]
[Round "1.2"]
[White "Haque, Nishaaz"]
[Black "Kurt, Sascha"]
[Result "0-1"]
[TimeControl "90min/40moves + 30min + 30sec/move"]
[WhiteElo "1803"]
[BlackElo "2096"]

1. e4 {[%clk 01:30:58]} {[%emt 00:00:01]} c5 {[%clk 01:30:56]} {[%emt
00:00:04]} 2. c3 {[%clk 01:31:26]} {[%emt 00:00:03]} Nf6 {[%clk 01:31:20]}
{[%emt 00:00:06]} 3. e5 {[%clk 01:31:52]} {[%emt 00:00:04]} Nd5 {[%clk
01:31:46]} {[%emt 00:00:04]} 4. Nf3 {[%clk 01:32:18]} {[%emt 00:00:05]} Nc6
{[%clk 01:32:12]} {[%emt 00:00:03]} 5. d4 {[%clk 01:32:26]} {[%emt 00:00:21]}
cxd4 {[%clk 01:32:38]} {[%emt 00:00:05]} 6. cxd4 {[%clk 01:32:45]} {[%emt
00:00:10]} d6 {[%clk 01:33:05]} {[%emt 00:00:04]} 7. Bb5 {[%clk 01:31:26]}
{[%emt 00:01:49]} e6 {[%clk 01:32:22]} {[%emt 00:01:13]} 8. Nc3 {[%clk
01:29:47]} {[%emt 00:02:09]} Nxc3 {[%clk 01:32:20]} {[%emt 00:00:33]} 9. bxc3
{[%clk 01:30:09]} {[%emt 00:00:07]} dxe5 {[%clk 01:32:06]} {[%emt 00:00:44]} 10.
Nxe5 {[%clk 01:29:29]} {[%emt 00:01:10]} Bd7 {[%clk 01:31:56]} {[%emt
00:00:40]} 11. Nxd7 {[%clk 01:26:32]} {[%emt 00:03:27]} Qxd7 {[%clk 01:32:19]}
{[%emt 00:00:07]} 12. Bf4 {[%clk 01:26:22]} {[%emt 00:00:39]} Bd6 {[%clk
01:31:36]} {[%emt 00:01:13]} 13. Be3 {[%clk 01:20:26]} {[%emt 00:06:26]} O-O
{[%clk 01:31:23]} {[%emt 00:00:43]} 14. O-O {[%clk 01:20:33]} {[%emt 00:00:23]}
Rfd8 {[%clk 01:31:15]} {[%emt 00:00:39]} 15. Qg4 {[%clk 01:14:37]} {[%emt
00:06:25]} Be7 {[%clk 01:22:11]} {[%emt 00:09:34]} 16. Bd3 {[%clk 01:08:48]}
{[%emt 00:06:20]} Bf6 {[%clk 01:07:47]} {[%emt 00:14:54]} 17. f4 {[%clk
01:07:50]} {[%emt 00:01:28]} Rac8 {[%clk 00:57:45]} {[%emt 00:10:32]} 18. f5
{[%clk 01:06:45]} {[%emt 00:01:35]} e5 {[%clk 00:57:41]} {[%emt 00:00:34]} 19.
Bg5 {[%clk 01:02:55]} {[%emt 00:04:18]} Qe7 {[%clk 00:54:11]} {[%emt 00:04:01]}
20. Bh6 {[%clk 00:57:30]} {[%emt 00:05:55]} exd4 {[%clk 00:47:10]} {[%emt
00:07:31]} 21. Bxg7 {[%clk 00:56:48]} {[%emt 00:01:12]} Qe3+ {[%clk 00:47:35]}
{[%emt 00:00:05]} 22. Kh1 {[%clk 00:56:23]} {[%emt 00:00:57]} Ne5 {[%clk
00:47:33]} {[%emt 00:00:31]} 0-1

[Event "NJSK 2024 C"]
[Site "Groningen, Netherlands"]
[Date "2024.04.27"]
[Round "1.3"]
[White "Aravindhan, Achyuth"]
[Black "Etienne, Ghilon"]
[Result "1-0"]
[TimeControl "90min/40moves + 30min + 30sec/move"]
[WhiteElo "2071"]
[BlackElo "1793"]

1. e4 {[%clk 01:30:57]} {[%emt 00:00:03]} e5 {[%clk 01:30:56]} {[%emt
00:00:05]} 2. Nf3 {[%clk 01:31:23]} {[%emt 00:00:04]} Nc6 {[%clk 01:31:22]}
{[%emt 00:00:04]} 3. Bc4 {[%clk 01:31:48]} {[%emt 00:00:05]} Nf6 {[%clk
01:31:48]} {[%emt 00:00:04]} 4. d4 {[%clk 01:32:14]} {[%emt 00:00:04]} exd4
{[%clk 01:32:14]} {[%emt 00:00:04]} 5. e5 {[%clk 01:32:40]} {[%emt 00:00:04]}
d5 {[%clk 01:32:40]} {[%emt 00:00:04]} 6. Bb5 {[%clk 01:33:07]} {[%emt
00:00:03]} Ne4 {[%clk 01:33:04]} {[%emt 00:00:06]} 7. Nxd4 {[%clk 01:33:32]}
{[%emt 00:00:05]} Bd7 {[%clk 01:33:29]} {[%emt 00:00:05]} 8. Bxc6 {[%clk
01:33:57]} {[%emt 00:00:05]} bxc6 {[%clk 01:33:54]} {[%emt 00:00:05]} 9. O-O
{[%clk 01:34:21]} {[%emt 00:00:05]} Bc5 {[%clk 01:33:54]} {[%emt 00:00:31]} 10.
f3 {[%clk 01:34:35]} {[%emt 00:00:16]} Ng5 {[%clk 01:34:18]} {[%emt 00:00:05]}
11. f4 {[%clk 01:35:00]} {[%emt 00:00:06]} Ne4 {[%clk 01:34:45]} {[%emt
00:00:03]} 12. Be3 {[%clk 01:35:19]} {[%emt 00:00:11]} Bb6 {[%clk 01:34:32]}
{[%emt 00:00:43]} 13. Nd2 {[%clk 01:35:27]} {[%emt 00:00:21]} Nxd2 {[%clk
01:34:03]} {[%emt 00:01:00]} 14. Qxd2 {[%clk 01:35:48]} {[%emt 00:00:09]} c5
{[%clk 01:32:06]} {[%emt 00:02:26]} 15. Nf3 {[%clk 01:36:12]} {[%emt 00:00:06]}
Bc6 {[%clk 01:31:13]} {[%emt 00:01:23]} 16. Bf2 {[%clk 01:32:20]} {[%emt
00:04:22]} Qd7 {[%clk 01:26:02]} {[%emt 00:05:41]} 17. Ng5 {[%clk 01:09:51]}
{[%emt 00:22:59]} O-O-O {[%clk 01:24:47]} {[%emt 00:01:45]} 18. b4 {[%clk
01:08:36]} {[%emt 00:01:46]} c4 {[%clk 01:23:00]} {[%emt 00:02:16]} 19. Bd4
{[%clk 00:53:20]} {[%emt 00:15:46]} h6 {[%clk 01:18:46]} {[%emt 00:04:45]} 20.
Nf3 {[%clk 00:53:18]} {[%emt 00:00:32]} Rhe8 {[%clk 01:11:34]} {[%emt
00:07:42]} 21. c3 {[%clk 00:50:37]} {[%emt 00:03:12]} Kb8 {[%clk 01:08:57]}
{[%emt 00:03:07]} 22. Qc2 {[%clk 00:40:35]} {[%emt 00:10:31]} Ba4 {[%clk
01:09:13]} {[%emt 00:00:14]} 23. Qb2 {[%clk 00:40:02]} {[%emt 00:01:03]} a6
{[%clk 01:00:14]} {[%emt 00:09:29]} 24. Rab1 {[%clk 00:32:20]} {[%emt
00:08:12]} Qf5 {[%clk 00:48:40]} {[%emt 00:12:03]} 25. Bxb6 {[%clk 00:25:55]}
{[%emt 00:06:57]} cxb6 {[%clk 00:48:44]} {[%emt 00:00:25]} 26. Nd4 {[%clk
00:26:18]} {[%emt 00:00:08]} Qd7 {[%clk 00:45:14]} {[%emt 00:04:00]} 27. Rbe1
{[%clk 00:22:40]} {[%emt 00:04:07]} Qc7 {[%clk 00:37:46]} {[%emt 00:07:58]} 28.
e6 {[%clk 00:15:29]} {[%emt 00:07:42]} Qe7 {[%clk 00:34:34]} {[%emt 00:03:42]}
29. Qf2 {[%clk 00:12:52]} {[%emt 00:03:06]} Qb7 {[%clk 00:33:19]} {[%emt
00:01:45]} 30. f5 {[%clk 00:11:57]} {[%emt 00:01:26]} Ka7 {[%clk 00:32:09]}
{[%emt 00:01:40]} 31. Qg3 {[%clk 00:10:31]} {[%emt 00:01:55]} Rg8 {[%clk
00:29:16]} {[%emt 00:03:23]} 32. Qh4 {[%clk 00:06:05]} {[%emt 00:04:56]} Rde8
{[%clk 00:27:40]} {[%emt 00:02:07]} 33. f6 {[%clk 00:06:23]} {[%emt 00:00:13]}
gxf6 {[%clk 00:26:23]} {[%emt 00:01:46]} 34. Rxf6 {[%clk 00:06:28]} {[%emt
00:00:24]} fxe6 {[%clk 00:26:38]} {[%emt 00:00:16]} 35. Rfxe6 {[%clk 00:06:42]}
{[%emt 00:00:16]} Qg7 {[%clk 00:26:12]} {[%emt 00:00:56]} 36. Re7+ {[%clk
00:07:05]} {[%emt 00:00:07]} 1-0

[Event "NJSK 2024 C"]
[Site "Groningen, Netherlands"]
[Date "2024.04.27"]
[Round "1.4"]
[White "Lalkota, Sai Pranav Tejas"]
[Black "Groenewoud, Joel"]
[Result "0-1"]
[TimeControl "90min/40moves + 30min + 30sec/move"]
[WhiteElo "1782"]
[BlackElo "2030"]

1. c4 {[%clk 01:30:55]} {[%emt 00:00:04]} Nf6 {[%clk 01:30:53]} {[%emt
00:00:06]} 2. g3 {[%clk 01:31:15]} {[%emt 00:00:11]} g6 {[%clk 01:31:15]}
{[%emt 00:00:08]} 3. Bg2 {[%clk 01:31:38]} {[%emt 00:00:06]} Bg7 {[%clk
01:31:32]} {[%emt 00:00:14]} 4. Nc3 {[%clk 01:31:59]} {[%emt 00:00:09]} O-O
{[%clk 01:31:38]} {[%emt 00:00:24]} 5. Nf3 {[%clk 01:31:54]} {[%emt 00:00:36]}
d6 {[%clk 01:31:44]} {[%emt 00:00:24]} 6. O-O {[%clk 01:32:05]} {[%emt
00:00:18]} c6 {[%clk 01:31:39]} {[%emt 00:00:35]} 7. d3 {[%clk 01:30:49]}
{[%emt 00:01:47]} e5 {[%clk 01:29:51]} {[%emt 00:02:17]} 8. e4 {[%clk
01:28:53]} {[%emt 00:02:25]} Nbd7 {[%clk 01:20:24]} {[%emt 00:09:58]} 9. Nh4
{[%clk 01:27:02]} {[%emt 00:02:21]} Re8 {[%clk 01:10:52]} {[%emt 00:10:03]} 10.
f4 {[%clk 01:26:59]} {[%emt 00:00:32]} exf4 {[%clk 01:03:14]} {[%emt 00:08:07]}
11. Bxf4 {[%clk 01:27:12]} {[%emt 00:00:17]} Ne5 {[%clk 01:00:54]} {[%emt
00:02:50]} 12. Nf3 {[%clk 01:24:20]} {[%emt 00:03:23]} Qb6+ {[%clk 00:55:14]}
{[%emt 00:06:11]} 13. Kh1 {[%clk 01:23:55]} {[%emt 00:00:53]} Qxb2 {[%clk
00:53:31]} {[%emt 00:02:14]} 14. Na4 {[%clk 01:21:12]} {[%emt 00:03:13]} Qa3
{[%clk 00:52:25]} {[%emt 00:01:36]} 15. Bxe5 {[%clk 01:09:45]} {[%emt
00:11:58]} dxe5 {[%clk 00:52:33]} {[%emt 00:00:20]} 16. c5 {[%clk 01:08:59]}
{[%emt 00:01:17]} Nd7 {[%clk 00:44:02]} {[%emt 00:09:01]} 17. Rc1 {[%clk
01:05:53]} {[%emt 00:03:32]} b5 {[%clk 00:42:30]} {[%emt 00:02:06]} 18. cxb6
{[%clk 01:05:48]} {[%emt 00:00:35]} axb6 {[%clk 00:42:40]} {[%emt 00:00:20]} 19.
Nc3 {[%clk 01:05:16]} {[%emt 00:01:02]} Qd6 {[%clk 00:35:05]} {[%emt 00:08:05]}
20. Ng5 {[%clk 01:04:30]} {[%emt 00:01:13]} Rf8 {[%clk 00:31:15]} {[%emt
00:04:22]} 21. Qb3 {[%clk 01:00:43]} {[%emt 00:04:18]} Bf6 {[%clk 00:29:08]}
{[%emt 00:02:37]} 22. Nf3 {[%clk 01:00:01]} {[%emt 00:01:12]} Ba6 {[%clk
00:24:40]} {[%emt 00:04:59]} 23. Rcd1 {[%clk 00:59:44]} {[%emt 00:00:46]} Nc5
{[%clk 00:23:49]} {[%emt 00:01:21]} 24. Qb1 {[%clk 00:58:51]} {[%emt 00:01:22]}
Rfd8 {[%clk 00:19:09]} {[%emt 00:05:09]} 25. Ne1 {[%clk 00:59:10]} {[%emt
00:00:12]} Bg7 {[%clk 00:17:34]} {[%emt 00:02:06]} 26. Rf3 {[%clk 00:59:04]}
{[%emt 00:00:36]} Ne6 {[%clk 00:15:12]} {[%emt 00:02:52]} 27. Ne2 {[%clk
00:59:01]} {[%emt 00:00:32]} c5 {[%clk 00:14:29]} {[%emt 00:01:13]} 28. Bh3
{[%clk 00:58:48]} {[%emt 00:00:42]} Ng5 {[%clk 00:14:30]} {[%emt 00:00:30]} 29.
Bg2 {[%clk 00:59:06]} {[%emt 00:00:12]} Nxf3 {[%clk 00:14:54]} {[%emt
00:00:07]} 30. Bxf3 {[%clk 00:59:21]} {[%emt 00:00:15]} c4 {[%clk 00:15:05]}
{[%emt 00:00:19]} 31. Nc3 {[%clk 00:59:33]} {[%emt 00:00:18]} cxd3 {[%clk
00:14:45]} {[%emt 00:00:50]} 32. Nd5 {[%clk 00:59:29]} {[%emt 00:00:33]} Rab8
{[%clk 00:13:39]} {[%emt 00:01:36]} 33. Nxd3 {[%clk 00:59:45]} {[%emt
00:00:15]} Bc4 {[%clk 00:11:16]} {[%emt 00:02:54]} 34. N3b4 {[%clk 00:59:56]}
{[%emt 00:00:18]} Bf8 {[%clk 00:10:16]} {[%emt 00:01:30]} 35. Qc1 {[%clk
00:59:26]} {[%emt 00:00:59]} b5 {[%clk 00:10:10]} {[%emt 00:00:37]} 36. Qg5
{[%clk 00:59:30]} {[%emt 00:00:25]} Kg7 {[%clk 00:09:35]} {[%emt 00:01:06]} 37.
Na6 {[%clk 00:58:22]} {[%emt 00:01:37]} f6 {[%clk 00:08:38]} {[%emt 00:01:27]}
38. Nxf6 {[%clk 00:58:08]} {[%emt 00:00:44]} Qxf6 {[%clk 00:08:29]} {[%emt
00:00:39]} 39. Qxf6+ {[%clk 00:58:28]} {[%emt 00:00:10]} Kxf6 {[%clk 00:08:55]}
{[%emt 00:00:04]} 40. Nxb8 {[%clk 00:58:43]} {[%emt 00:00:16]} Rxb8 {[%clk
00:09:19]} {[%emt 00:00:06]} 41. Rd7 {[%clk 00:58:39]} {[%emt 00:00:34]} Be7
{[%clk 00:09:38]} {[%emt 00:00:10]} 42. g4 {[%clk 00:58:59]} {[%emt 00:00:10]}
Ke6 {[%clk 00:09:56]} {[%emt 00:00:13]} 43. Ra7 {[%clk 00:59:14]} {[%emt
00:00:15]} g5 {[%emt 00:01:24]} 0-1

[Event "NJSK 2024 C"]
[Site "Groningen, Netherlands"]
[Date "2024.04.27"]
[Round "1.5"]
[White "Grooten, Tommy"]
[Black "De Wit, Evan"]
[Result "1-0"]
[TimeControl "90min/40moves + 30min + 30sec/move"]
[WhiteElo "2018"]
[BlackElo "1769"]

1. d4 {[%clk 01:30:59]} Nf6 {[%clk 01:30:51]} {[%emt 00:00:08]} 2. c4 {[%clk
01:31:25]} {[%emt 00:00:05]} e6 {[%clk 01:31:13]} {[%emt 00:00:07]} 3. Nc3
{[%clk 01:31:52]} {[%emt 00:00:03]} Bb4 {[%clk 01:31:32]} {[%emt 00:00:11]} 4.
f3 {[%clk 01:32:16]} {[%emt 00:00:07]} b5 {[%clk 01:31:58]} {[%emt 00:00:05]} 5.
e3 {[%clk 01:23:28]} {[%emt 00:09:17]} bxc4 {[%clk 01:31:48]} {[%emt 00:00:39]}
6. Bxc4 {[%clk 01:23:48]} {[%emt 00:00:10]} O-O {[%clk 01:31:42]} {[%emt
00:00:36]} 7. a3 {[%clk 01:24:00]} {[%emt 00:00:19]} Bxc3+ {[%clk 01:31:20]}
{[%emt 00:00:51]} 8. bxc3 {[%clk 01:24:21]} {[%emt 00:00:09]} d5 {[%clk
01:31:45]} {[%emt 00:00:05]} 9. Bd3 {[%clk 01:24:45]} {[%emt 00:00:06]} c5
{[%clk 01:31:45]} {[%emt 00:00:30]} 10. Ne2 {[%clk 01:24:54]} {[%emt 00:00:21]}
Nbd7 {[%clk 01:31:09]} {[%emt 00:01:06]} 11. e4 {[%clk 01:16:50]} {[%emt
00:08:34]} Bb7 {[%clk 01:29:04]} {[%emt 00:02:35]} 12. e5 {[%clk 01:15:11]}
{[%emt 00:02:09]} Ne8 {[%clk 01:27:43]} {[%emt 00:01:51]} 13. O-O {[%clk
01:15:06]} {[%emt 00:00:36]} Rc8 {[%clk 01:20:48]} {[%emt 00:07:24]} 14. f4
{[%clk 01:14:46]} {[%emt 00:00:50]} f6 {[%clk 01:17:41]} {[%emt 00:03:38]} 15.
f5 {[%clk 01:09:44]} {[%emt 00:05:31]} Nc7 {[%clk 01:07:37]} {[%emt 00:10:33]}
16. Nf4 {[%clk 01:03:47]} {[%emt 00:06:27]} fxe5 {[%clk 01:02:54]} {[%emt
00:05:14]} 17. Nxe6 {[%clk 01:03:17]} {[%emt 00:01:01]} Nxe6 {[%clk 01:02:25]}
{[%emt 00:00:59]} 18. fxe6 {[%clk 01:03:40]} {[%emt 00:00:06]} Nb6 {[%clk
00:58:10]} {[%emt 00:04:45]} 19. dxe5 {[%clk 00:59:57]} {[%emt 00:04:14]} Qe7
{[%clk 00:47:27]} {[%emt 00:11:12]} 20. Bf5 {[%clk 00:54:58]} {[%emt 00:05:28]}
Nc4 {[%clk 00:42:17]} {[%emt 00:05:41]} 21. Qg4 {[%clk 00:51:42]} {[%emt
00:03:47]} Ba6 {[%clk 00:35:50]} {[%emt 00:06:57]} 22. Bg5 {[%clk 00:50:39]}
{[%emt 00:01:32]} Qc7 {[%clk 00:18:16]} {[%emt 00:18:04]} 23. e7 {[%clk
00:50:32]} {[%emt 00:00:36]} Rxf5 {[%clk 00:14:37]} {[%emt 00:04:09]} 24. Qxf5
{[%clk 00:49:50]} {[%emt 00:01:13]} 1-0

[Event "NJSK 2024 C"]
[Site "Groningen, Netherlands"]
[Date "2024.04.27"]
[Round "1.6"]
[White "Winter, Sven"]
[Black "Chua, Ethan"]
[Result "0-1"]
[TimeControl "90min/40moves + 30min + 30sec/move"]
[WhiteElo "1768"]
[BlackElo "2000"]

1. e4 {[%clk 01:29:36]} {[%emt 00:01:23]} c6 {[%clk 01:30:56]} {[%emt
00:00:04]} 2. d4 {[%clk 01:30:01]} {[%emt 00:00:05]} d5 {[%clk 01:31:23]}
{[%emt 00:00:03]} 3. e5 {[%clk 01:30:26]} {[%emt 00:00:05]} c5 {[%clk
01:31:37]} {[%emt 00:00:17]} 4. dxc5 {[%clk 01:30:49]} {[%emt 00:00:06]} Nc6
{[%clk 01:31:35]} {[%emt 00:00:32]} 5. Nf3 {[%clk 01:30:08]} {[%emt 00:01:11]}
Bg4 {[%clk 01:32:01]} {[%emt 00:00:05]} 6. Bb5 {[%clk 01:23:32]} {[%emt
00:07:06]} e6 {[%clk 01:28:35]} {[%emt 00:03:55]} 7. c4 {[%clk 01:20:19]}
{[%emt 00:03:43]} Bxc5 {[%clk 01:25:59]} {[%emt 00:03:06]} 8. Nc3 {[%clk
01:17:33]} {[%emt 00:03:16]} Nge7 {[%clk 01:23:58]} {[%emt 00:02:31]} 9. Bg5
{[%clk 01:15:38]} {[%emt 00:02:25]} O-O {[%clk 01:04:34]} {[%emt 00:19:54]} 10.
Bxc6 {[%clk 01:08:00]} {[%emt 00:08:08]} bxc6 {[%clk 01:04:27]} {[%emt
00:00:37]} 11. O-O {[%clk 01:05:17]} {[%emt 00:03:12]} h6 {[%clk 01:02:03]}
{[%emt 00:02:54]} 12. Bh4 {[%clk 01:04:03]} {[%emt 00:01:44]} Qc7 {[%clk
01:00:42]} {[%emt 00:01:51]} 13. cxd5 {[%clk 00:53:46]} {[%emt 00:10:47]} cxd5
{[%clk 00:58:52]} {[%emt 00:02:21]} 14. Rc1 {[%clk 00:52:31]} {[%emt 00:01:45]}
Nf5 {[%clk 00:56:22]} {[%emt 00:03:00]} 15. Bg3 {[%clk 00:50:28]} {[%emt
00:02:32]} Qe7 {[%clk 00:50:59]} {[%emt 00:05:53]} 16. Re1 {[%clk 00:41:38]}
{[%emt 00:09:20]} a5 {[%clk 00:43:44]} {[%emt 00:07:46]} 17. h3 {[%clk
00:31:19]} {[%emt 00:10:47]} Bxh3 {[%clk 00:41:43]} {[%emt 00:02:33]} 18. gxh3
{[%clk 00:28:24]} {[%emt 00:03:24]} Nxg3 {[%clk 00:42:07]} {[%emt 00:00:07]} 19.
Nd4 {[%clk 00:25:05]} {[%emt 00:03:49]} Qh4 {[%clk 00:34:51]} {[%emt 00:07:46]}
20. fxg3 {[%clk 00:17:46]} {[%emt 00:07:49]} Qxg3+ {[%clk 00:34:35]} {[%emt
00:00:46]} 21. Kh1 {[%clk 00:15:10]} {[%emt 00:03:05]} Qxh3+ {[%clk 00:34:51]}
{[%emt 00:00:15]} 22. Kg1 {[%clk 00:15:28]} {[%emt 00:00:11]} Qg3+ {[%clk
00:35:11]} {[%emt 00:00:10]} 23. Kf1 {[%clk 00:15:10]} {[%emt 00:00:47]} f6
{[%emt 00:04:03]} 0-1

[Event "NJSK 2024 C"]
[Site "Groningen, Netherlands"]
[Date "2024.04.27"]
[Round "1.7"]
[White "Zecha, Oscar"]
[Black "Tetova, Amir"]
[Result "1/2-1/2"]
[TimeControl "90min/40moves + 30min + 30sec/move"]
[WhiteElo "1998"]
[BlackElo "1767"]

1. e4 {[%clk 01:30:57]} {[%emt 00:00:02]} e6 {[%clk 01:30:52]} {[%emt
00:00:09]} 2. d4 {[%clk 01:31:23]} {[%emt 00:00:04]} d5 {[%clk 01:31:18]}
{[%emt 00:00:04]} 3. e5 {[%clk 01:31:50]} {[%emt 00:00:02]} c5 {[%clk
01:31:29]} {[%emt 00:00:19]} 4. c3 {[%clk 01:32:16]} {[%emt 00:00:05]} Nc6
{[%clk 01:31:53]} {[%emt 00:00:06]} 5. Nf3 {[%clk 01:32:39]} {[%emt 00:00:06]}
Nge7 {[%clk 01:32:16]} {[%emt 00:00:07]} 6. Na3 {[%clk 01:28:15]} {[%emt
00:04:53]} Nf5 {[%clk 01:32:08]} {[%emt 00:00:38]} 7. Nc2 {[%clk 01:28:32]}
{[%emt 00:00:13]} Be7 {[%clk 01:31:07]} {[%emt 00:01:31]} 8. Ne3 {[%clk
01:14:34]} {[%emt 00:14:29]} O-O {[%clk 01:26:48]} {[%emt 00:04:49]} 9. Be2
{[%clk 01:04:59]} {[%emt 00:10:05]} Bd7 {[%clk 01:21:16]} {[%emt 00:06:02]} 10.
O-O {[%clk 01:03:35]} {[%emt 00:01:53]} a6 {[%clk 01:16:24]} {[%emt 00:05:23]}
11. dxc5 {[%clk 00:52:31]} {[%emt 00:11:33]} Bxc5 {[%clk 01:15:42]} {[%emt
00:01:13]} 12. Nxf5 {[%clk 00:52:45]} {[%emt 00:00:16]} exf5 {[%clk 01:10:20]}
{[%emt 00:05:51]} 13. Qxd5 {[%clk 00:52:41]} {[%emt 00:00:34]} Bb6 {[%clk
01:06:36]} {[%emt 00:04:15]} 14. Rd1 {[%clk 00:45:39]} {[%emt 00:07:32]} Be6
{[%clk 01:06:27]} {[%emt 00:00:39]} 15. Qxd8 {[%clk 00:45:00]} {[%emt
00:01:08]} Rb8 {[%emt 00:00:22]} 16. Qc8 Rbxc8 {[%clk 01:06:35]} 17. Bd2 {[%emt
00:03:12]} Rcd8 18. Bf4 {[%clk 00:42:18]} Bc7 {[%clk 01:04:01]} {[%emt
00:03:05]} 19. Bg3 {[%clk 00:38:47]} {[%emt 00:04:01]} Rxd1+ {[%clk 01:02:44]}
{[%emt 00:01:47]} 20. Bxd1 {[%clk 00:33:23]} {[%emt 00:05:53]} Re8 {[%clk
01:02:49]} {[%emt 00:00:26]} 21. Bc2 {[%clk 00:31:43]} {[%emt 00:02:09]} g6
{[%clk 00:54:54]} {[%emt 00:08:25]} 22. Rd1 {[%clk 00:21:48]} {[%emt 00:10:25]}
Bxa2 {[%clk 00:40:53]} {[%emt 00:14:32]} 23. b3 {[%clk 00:21:35]} {[%emt
00:00:42]} Na5 {[%clk 00:41:18]} {[%emt 00:00:05]} 24. Rd7 {[%clk 00:21:08]}
{[%emt 00:00:57]} Bb6 {[%clk 00:39:43]} {[%emt 00:02:06]} 25. b4 {[%clk
00:19:25]} {[%emt 00:02:13]} Be6 {[%clk 00:37:41]} {[%emt 00:02:32]} 26. Rd1
{[%clk 00:17:20]} {[%emt 00:02:35]} Nc6 {[%clk 00:37:20]} {[%emt 00:00:52]} 27.
Ng5 {[%clk 00:17:25]} {[%emt 00:00:24]} h6 {[%clk 00:34:09]} {[%emt 00:03:41]}
28. Nxe6 {[%clk 00:17:50]} {[%emt 00:00:06]} fxe6 {[%clk 00:34:12]} {[%emt
00:00:26]} 29. Ba4 {[%clk 00:13:43]} {[%emt 00:04:37]} Rd8 {[%clk 00:32:21]}
{[%emt 00:02:21]} 30. Rxd8+ {[%clk 00:11:41]} {[%emt 00:02:32]} Bxd8 {[%clk
00:32:46]} {[%emt 00:00:05]} 31. f4 {[%clk 00:10:22]} {[%emt 00:01:48]} b5
{[%clk 00:32:51]} {[%emt 00:00:25]} 32. Bd1 {[%clk 00:05:39]} {[%emt 00:05:13]}
Bb6+ {[%clk 00:32:35]} {[%emt 00:00:47]} 33. Kf1 {[%clk 00:05:39]} {[%emt
00:00:29]} g5 {[%clk 00:24:15]} {[%emt 00:08:51]} 34. Bh5 {[%clk 00:03:37]}
{[%emt 00:02:31]} Kf8 {[%clk 00:24:20]} {[%emt 00:00:25]} 35. Bf3 {[%clk
00:04:02]} {[%emt 00:00:05]} Nd8 {[%clk 00:24:09]} {[%emt 00:00:41]} 36. h3
{[%clk 00:03:56]} {[%emt 00:00:36]} a5 {[%clk 00:23:19]} {[%emt 00:01:20]} 37.
Be2 {[%clk 00:02:15]} {[%emt 00:02:11]} axb4 {[%clk 00:21:51]} {[%emt
00:01:59]} 38. cxb4 {[%clk 00:02:43]} {[%emt 00:00:01]} Nc6 {[%clk 00:21:45]}
{[%emt 00:00:37]} 39. fxg5 {[%clk 00:02:34]} {[%emt 00:00:39]} hxg5 {[%clk
00:22:03]} {[%emt 00:00:12]} 40. Be1 {[%clk 00:02:47]} {[%emt 00:00:16]} Nxe5
{[%clk 00:21:42]} {[%emt 00:00:52]} 41. Bxb5 {[%clk 00:03:14]} {[%emt
00:00:03]} Kf7 {[%clk 00:20:57]} {[%emt 00:01:14]} 42. Ke2 {[%clk 00:01:57]}
{[%emt 00:01:46]} Ng6 {[%clk 00:21:11]} {[%emt 00:00:18]} 43. Bd2 {[%clk
00:01:09]} {[%emt 00:01:17]} Kf6 {[%clk 00:20:35]} {[%emt 00:01:07]} 44. Be8
{[%clk 00:01:02]} {[%emt 00:00:37]} f4 {[%clk 00:19:27]} {[%emt 00:01:37]} 45.
b5 {[%clk 00:00:39]} {[%emt 00:00:53]} Nh4 {[%clk 00:19:39]} {[%emt 00:00:18]}
46. Bc6 {[%clk 00:00:34]} {[%emt 00:00:35]} Nf5 {[%clk 00:19:49]} {[%emt
00:00:20]} 47. Kf3 {[%clk 00:00:33]} {[%emt 00:00:32]} Nd4+ {[%clk 00:14:04]}
{[%emt 00:06:15]} 48. Kg4 {[%clk 00:00:54]} {[%emt 00:00:09]} Nxc6 {[%clk
00:13:38]} {[%emt 00:00:56]} 49. bxc6 {[%clk 00:01:22]} {[%emt 00:00:02]} Bc7
{[%clk 00:14:00]} {[%emt 00:00:08]} 50. h4 {[%clk 00:00:58]} {[%emt 00:00:54]}
gxh4 {[%clk 00:13:58]} {[%emt 00:00:31]} 51. Bxf4 {[%clk 00:01:12]} {[%emt
00:00:17]} e5 {[%clk 00:12:32]} {[%emt 00:01:56]} 52. Bh2 {[%clk 00:01:00]}
{[%emt 00:00:41]} Ke6 {[%clk 00:12:54]} {[%emt 00:00:09]} 53. Kxh4 {[%clk
00:01:22]} {[%emt 00:00:08]} Kd6 {[%clk 00:13:09]} {[%emt 00:00:15]} 54. Kg5
{[%clk 00:01:02]} {[%emt 00:00:50]} Kxc6 {[%clk 00:13:33]} {[%emt 00:00:06]} 55.
Kf5 {[%clk 00:01:25]} {[%emt 00:00:06]} Bd8 {[%clk 00:08:13]} {[%emt 00:05:51]}
56. Bxe5 {[%clk 00:01:16]} {[%emt 00:00:38]} Bh4 {[%clk 00:08:39]} {[%emt
00:00:04]} 57. g4 {[%clk 00:00:34]} {[%emt 00:01:12]} Kd7 {[%clk 00:05:01]}
{[%emt 00:04:09]} 58. Bf6 {[%clk 00:00:50]} {[%emt 00:00:14]} Be1 {[%clk
00:04:37]} {[%emt 00:00:54]} 59. g5 {[%clk 00:00:42]} {[%emt 00:00:38]} Ke8
{[%clk 00:05:06]} {[%emt 00:00:02]} 60. Kg6 {[%clk 00:00:34]} {[%emt 00:00:37]}
Bd2 {[%clk 00:05:19]} {[%emt 00:00:17]} 1/2-1/2